bitfinex-derivatives/quotes_BTCF0:USTF0_20251208
["timestamp","ask_amount","ask_price","bid_price","bid_amount"]
[1765205237674,0.0109135,91631.0,91625.0,0.002]
[1765205238168,0.0109134,91632.0,91625.0,0.002]
[1765205238364,0.1339763,91640.0,91625.0,0.002]
[1765205238562,0.0109126,91639.0,91625.0,0.002]
[1765205238764,0.2679526,91640.0,91625.0,0.002]
[1765205238958,0.1339763,91640.0,91624.0,0.0109143]
[1765205239168,0.1339763,91633.0,91625.0,0.001]
[1765205239371,0.1448896,91633.0,91626.0,0.0109141]
[1765205239568,0.0109137,91630.0,91625.0,0.001]
[1765205239758,0.00016372,91641.0,91628.0,0.0109138]
[1765205239759,0.0109132,91634.0,91628.0,0.0109138]
[1765205239963,0.001,91639.0,91638.0,0.0109127]
[1765205240163,0.00016372,91641.0,91624.0,0.001]
[1765205240365,0.00016372,91641.0,91639.0,0.21171]
[1765205240564,0.1339763,91649.0,91633.0,0.0109132]
[1765205240771,0.0109132,91634.0,91625.0,0.0109142]
[1765205240968,0.1185037,91629.0,91628.0,0.002]
[1765205241163,0.20761,91629.0,91628.0,0.002]
[1765205241368,0.10759,91629.0,91628.0,0.002]
[1765205241569,0.20761,91629.0,91628.0,0.002]
[1765205241966,0.2185243,91624.0,91623.0,0.00016372]
[1765205243065,0.1339763,91633.0,91623.0,0.00216372]
[1765205243370,0.0109137,91630.0,91623.0,0.00516372]
[1765205243668,0.0109136,91631.0,91623.0,0.01607812]
[1765205243876,0.0109136,91631.0,91626.0,0.0109141]
[1765205244374,0.0109131,91635.0,91629.0,0.0109137]
[1765205244560,0.0109135,91632.0,91625.0,0.0109141]
[1765205244766,0.0109133,91633.0,91624.0,0.0109143]
[1765205244966,0.001,91633.0,91631.0,0.0109134]
[1765205245162,0.001,91633.0,91632.0,0.1037]
[1765205245361,0.00016372,91638.0,91637.0,0.2226228]
[1765205245773,0.00016372,91638.0,91633.0,0.0109132]
[1765205245974,0.00016372,91638.0,91623.0,0.06610372]
[1765205246175,0.001,91633.0,91632.0,0.2226234]
[1765205247674,0.0109138,91629.0,91623.0,0.01107812]
[1765205247873,0.0109141,91626.0,91623.0,0.00016372]
[1765205248268,0.10759,91624.0,91623.0,0.00016372]
[1765205248473,0.20761,91624.0,91623.0,0.00016372]
[1765205248866,0.20761,91624.0,91623.0,0.00116372]
[1765205249467,0.20761,91624.0,91623.0,0.00516372]
[1765205250485,0.1185073,91599.0,91598.0,9.436e-05]
[1765205250686,0.2185273,91599.0,91598.0,9.436e-05]
[1765205251177,0.0109164,91607.0,91578.0,0.0109198]
[1765205251377,0.0109193,91583.0,91578.0,0.0109198]
[1765205251569,0.16855949,91590.0,91587.0,0.0109186]
[1765205251766,0.03542,91600.0,91583.0,0.0109191]
[1765205251767,0.16855949,91597.0,91583.0,0.0109191]
[1765205251966,0.0109181,91592.0,91588.0,0.0109186]
[1765205252173,0.16855949,91593.0,91586.0,0.0109187]
[1765205252174,0.0109185,91590.0,91586.0,0.0109187]
[1765205252489,9.332e-05,91591.0,91573.0,0.0109204]
[1765205252490,9.332e-05,91591.0,91589.0,0.0109184]
[1765205252682,0.001,91590.0,91589.0,0.0109184]
[1765205252880,0.10859,91590.0,91589.0,0.0109184]
[1765205253275,0.20861,91590.0,91589.0,0.0109184]
[1765205253480,0.20861,91590.0,91588.0,0.0109186]
[1765205253777,0.001,91590.0,91588.0,0.0109186]
[1765205254278,0.004,91590.0,91588.0,0.0109186]
[1765205254872,9.332e-05,91591.0,91590.0,0.2226284]
[1765205256378,0.20770332,91591.0,91590.0,0.0109184]
[1765205256680,9.332e-05,91591.0,91590.0,0.2226284]
[1765205257277,0.00109332,91591.0,91590.0,0.2226284]
[1765205257783,0.01501162,91591.0,91590.0,0.0129184]
[1765205258179,0.22262162,91591.0,91590.0,0.002]
[1765205258379,0.10759,91585.0,91574.0,0.0288872]
[1765205258589,0.0109199,91578.0,91574.0,0.0109202]
[1765205258774,0.16855949,91590.0,91578.0,0.0109197]
[1765205258979,9.332e-05,91591.0,91585.0,0.0109189]
[1765205259191,0.0109188,91587.0,91585.0,0.0109189]
[1765205259374,9.332e-05,91591.0,91590.0,0.001]
[1765205259972,0.20770332,91591.0,91590.0,0.001]
[1765205260486,9.332e-05,91591.0,91590.0,0.001]
[1765205260677,9.332e-05,91591.0,91588.0,0.0109186]
[1765205260678,0.10768332,91591.0,91588.0,0.0109186]
[1765205260873,0.10768332,91591.0,91571.0,0.01108432]
[1765205260874,0.10759,91572.0,91571.0,0.00016372]
[1765205261075,0.20770436,91572.0,91571.0,0.00016372]
[1765205261880,9.436e-05,91572.0,91571.0,0.00016372]
[1765205263478,9.436e-05,91572.0,91571.0,0.00116372]
[1765205264582,9.436e-05,91572.0,91571.0,0.09845372]
[1765205264990,9.436e-05,91572.0,91571.0,0.10145372]
[1765205265188,9.436e-05,91572.0,91571.0,0.20011372]
[1765205265685,0.16855949,91590.0,91571.0,0.00416372]
[1765205265887,0.22816,91596.0,91592.0,0.09729]
[1765205266183,0.0109163,91608.0,91592.0,0.19595]
[1765205266496,0.16855949,91610.0,91584.0,0.0631]
[1765205266497,0.16855949,91610.0,91608.0,0.0109162]
[1765205266788,0.16855949,91618.0,91610.0,0.0109159]
[1765205266979,0.52,91624.0,91610.0,0.0109159]
[1765205266980,0.16855949,91620.0,91610.0,0.0109159]
[1765205267184,0.19637,91585.0,91584.0,0.0288872]
[1765205267482,0.005,91593.0,91575.0,0.01108382]
[1765205267483,0.10061,91583.0,91575.0,0.01108382]
[1765205267785,0.00016372,91594.0,91575.0,0.00016372]
[1765205268084,0.01108172,91594.0,91575.0,0.02905092]
[1765205268291,0.19637,91585.0,91584.0,0.001]
[1765205268485,0.210289,91585.0,91584.0,0.001]
[1765205268685,0.210289,91585.0,91575.0,0.00016372]
[1765205268686,0.20729,91576.0,91575.0,0.00016372]
[1765205268889,0.20729,91576.0,91551.0,0.00021846]
[1765205268890,0.2072912,91566.0,91551.0,0.00021846]
[1765205269082,0.2072912,91566.0,91553.0,0.0109227]
[1765205269287,0.2072912,91566.0,91551.0,0.00021846]
[1765205269991,0.2072912,91566.0,91556.0,0.00016382]
[1765205270687,0.2072923,91557.0,91556.0,0.00016382]
[1765205271082,0.2072929,91552.0,91551.0,0.00021846]
[1765205271285,0.10061,91537.0,91531.0,0.0288872]
[1765205271484,0.19637,91537.0,91529.0,0.0288872]
[1765205271894,0.19637,91527.0,91517.0,0.0288872]
[1765205272092,0.17948489,91531.0,91513.0,0.0109276]
[1765205272390,0.17948489,91531.0,91513.0,0.00016382]
[1765205272391,0.0109271,91518.0,91513.0,0.00016382]
[1765205272597,0.19637,91514.0,91513.0,0.00016382]
[1765205272893,0.19646604,91514.0,91513.0,0.00016382]
[1765205273392,9.604e-05,91514.0,91495.0,0.0109297]
[1765205273592,0.16855949,91506.0,91495.0,0.0109297]
[1765205273793,0.16855949,91506.0,91471.0,0.0109325]
[1765205273794,0.16855949,91506.0,91485.0,0.0288872]
[1765205273982,0.16855949,91510.0,91501.0,0.0109289]
[1765205274188,0.0109281,91509.0,91491.0,0.0109302]
[1765205274387,0.16855949,91500.0,91495.0,0.0109296]
[1765205274685,0.0109294,91498.0,91491.0,0.0001096]
[1765205275084,0.19637,91492.0,91491.0,0.0001096]
[1765205275391,0.01100927,91492.0,91459.0,0.0288872]
[1765205275592,0.0109304,91489.0,91485.0,0.006]
[1765205275793,0.19637,91486.0,91485.0,0.006]
[1765205277395,9.604e-05,91486.0,91485.0,0.25905]
[1765205277699,0.00109604,91486.0,91485.0,0.26705]
[1765205277992,0.00109604,91486.0,91485.0,0.008]
[1765205278296,0.00209604,91486.0,91485.0,0.023]
[1765205278695,0.00209604,91486.0,91485.0,0.12029]
[1765205279197,0.00209604,91486.0,91485.0,0.27819]
[1765205280306,0.00016391,91495.0,91494.0,0.2048198]
[1765205280798,0.99448,91523.0,91512.0,0.0109277]
[1765205281096,0.010925,91535.0,91510.0,0.16855949]
[1765205281290,0.010925,91535.0,91504.0,0.05924]
[1765205281291,0.0109244,91540.0,91504.0,0.05924]
[1765205281491,0.0109227,91554.0,91527.0,0.0109258]
[1765205281492,0.0109248,91536.0,91527.0,0.0109258]
[1765205281688,0.0109248,91536.0,91530.0,0.0109254]
[1765205281889,0.0109254,91531.0,91523.0,0.0109264]
[1765205282194,0.00016391,91541.0,91523.0,0.05924]
[1765205282390,0.00016391,91541.0,91540.0,0.19389]
[1765205282700,0.00016391,91541.0,91523.0,0.05924]
[1765205282993,0.16855949,91540.0,91523.0,0.05924]
[1765205283200,0.011925,91535.0,91527.0,0.0109258]
[1765205283503,0.001,91535.0,91527.0,0.0109258]
[1765205283689,0.001,91535.0,91534.0,0.09776]
[1765205283890,0.003,91536.0,91535.0,0.2048149]
[1765205284196,0.00016391,91541.0,91540.0,0.2048143]
[1765205284496,0.0109219,91561.0,91551.0,0.0109229]
[1765205284697,0.0109218,91562.0,91555.0,0.0109225]
[1765205284997,0.0109213,91566.0,91540.0,0.0109243]
[1765205285196,0.0109235,91548.0,91540.0,0.0109242]
[1765205285396,0.01108671,91553.0,91535.0,0.00016391]
[1765205285598,0.00016391,91553.0,91535.0,0.00016391]
[1765205285898,0.183,91536.0,91535.0,0.00016391]
[1765205286591,0.0109267,91520.0,91502.0,0.0288872]
[1765205286798,0.16855949,91520.0,91509.0,0.010928]
[1765205287098,0.0109269,91519.0,91512.0,0.0109276]
[1765205287295,0.0109273,91515.0,91508.0,0.0109282]
[1765205287502,0.16855949,91518.0,91508.0,0.0109282]
[1765205287691,0.16855949,91518.0,91504.0,0.00016391]
[1765205287893,0.09112,91505.0,91504.0,0.00016391]
[1765205288095,0.183,91505.0,91504.0,0.00016391]
[1765205288797,0.1939285,91505.0,91504.0,0.00016391]
[1765205288997,0.0109299,91494.0,91487.0,0.0109306]
[1765205289203,0.16855949,91497.0,91490.0,0.0109302]
[1765205289498,0.16855949,91497.0,91470.0,0.0109326]
[1765205289499,0.0109284,91507.0,91472.0,0.0109324]
[1765205289691,0.05703,91520.0,91470.0,0.16855949]
[1765205289692,0.0109297,91496.0,91470.0,0.16855949]
[1765205289893,0.17948859,91500.0,91467.0,0.0288872]
[1765205290097,0.00016391,91493.0,91467.0,0.0288872]
[1765205290304,0.00016391,91493.0,91490.0,0.0159302]
[1765205290697,0.00016391,91493.0,91490.0,0.005]
[1765205290897,0.00016391,91493.0,91488.0,0.0109304]
[1765205291103,0.00016391,91493.0,91491.0,0.0109301]
[1765205291304,0.00116391,91493.0,91467.0,0.0498872]
[1765205291503,0.0109304,91489.0,91467.0,0.021]
[1765205291693,0.16855949,91480.0,91469.0,0.0109327]
[1765205291898,0.0109328,91470.0,91467.0,0.021]
[1765205292106,0.18311,91468.0,91467.0,0.021]
[1765205292507,0.18311,91468.0,91467.0,0.013]
[1765205292807,0.18311,91468.0,91462.0,0.0109337]
[1765205293002,0.18311,91468.0,91445.0,0.0288872]
[1765205293198,0.00016391,91474.0,91469.0,0.0109327]
[1765205293404,0.0109323,91473.0,91467.0,0.005]
[1765205293705,0.00016391,91474.0,91468.0,0.0109329]
[1765205294202,0.18089,91469.0,91462.0,0.0109337]
[1765205294401,0.18089,91469.0,91461.0,0.00209018]
[1765205294706,0.0109348,91453.0,91443.0,0.0109359]
[1765205295000,0.0109325,91473.0,91440.0,0.00109362]
[1765205295001,0.010935,91451.0,91440.0,0.00109362]
[1765205295203,0.18089,91441.0,91440.0,0.00109362]
[1765205295505,0.000164,91455.0,91451.0,0.010935]
[1765205295700,0.000164,91455.0,91454.0,0.0864]
[1765205295904,0.00025418,91455.0,91451.0,0.010935]
[1765205296798,0.00225418,91455.0,91451.0,0.010935]
[1765205297517,0.00225418,91455.0,91451.0,0.002]
[1765205297804,0.00225418,91455.0,91454.0,0.0864]
[1765205297998,0.00225418,91455.0,91454.0,0.17563]
[1765205298901,0.00125418,91455.0,91454.0,0.17563]
[1765205299402,0.00025418,91455.0,91452.0,0.0109349]
[1765205299601,0.00025418,91455.0,91454.0,0.001]
[1765205299602,0.00225418,91455.0,91454.0,0.001]
[1765205299801,0.09115418,91455.0,91454.0,0.001]
[1765205300003,0.18114418,91455.0,91454.0,0.001]
[1765205300402,0.18114418,91455.0,91451.0,0.010935]
[1765205300602,0.18089,91453.0,91452.0,0.002]
[1765205300801,0.18089,91441.0,91440.0,0.00109362]
[1765205301004,0.18098018,91441.0,91440.0,0.00109362]
[1765205301304,0.18098018,91441.0,91436.0,0.0109367]
[1765205301305,0.16855949,91440.0,91436.0,0.0109367]
[1765205301504,0.16855949,91440.0,91415.0,0.00109392]
[1765205301701,0.000164,91437.0,91422.0,0.0109384]
[1765205301902,0.17949709,91430.0,91422.0,0.0109384]
[1765205302102,0.0109377,91428.0,91422.0,0.0109384]
[1765205302296,0.0109377,91428.0,91415.0,0.00109392]
[1765205302297,0.18089,91423.0,91415.0,0.00109392]
[1765205302505,0.0109389,91419.0,91415.0,0.00109392]
[1765205302811,9.018e-05,91429.0,91415.0,0.00109392]
[1765205303111,9.018e-05,91429.0,91422.0,0.001]
[1765205303303,9.018e-05,91429.0,91425.0,0.010938]
[1765205303896,0.0889,91423.0,91422.0,0.001]
[1765205304195,0.18089,91423.0,91422.0,0.001]
[1765205304807,9.018e-05,91429.0,91415.0,0.00209392]
[1765205305018,0.18089,91416.0,91415.0,0.00209392]
[1765205305199,0.18098018,91416.0,91415.0,0.00209392]
[1765205305506,0.0109405,91405.0,91400.0,0.00010124]
[1765205305709,9.018e-05,91416.0,91400.0,0.00010124]
[1765205305710,0.18089,91401.0,91400.0,0.00010124]
[1765205305906,9.018e-05,91404.0,91400.0,0.00010124]
[1765205306310,0.0889,91401.0,91400.0,0.00010124]
[1765205306613,0.18089,91388.0,91385.0,0.0109428]
[1765205306905,0.18089,91388.0,91371.0,0.0683044]
[1765205306906,0.18089,91388.0,91377.0,0.0109438]
[1765205307107,0.18089,91388.0,91354.0,0.0288872]
[1765205307303,0.18089,91388.0,91380.0,0.0109434]
[1765205307504,0.18097863,91388.0,91380.0,0.0109434]
[1765205307809,0.18097863,91388.0,91387.0,0.2365726]
[1765205307810,8.863e-05,91388.0,91387.0,0.2365726]
[1765205308904,0.13483247,91410.0,91387.0,0.05]
[1765205309100,0.13483247,91410.0,91405.0,0.0109404]
[1765205309314,0.13483247,91410.0,91408.0,0.0109401]
[1765205309610,0.13483247,91418.0,91411.0,0.0864]
[1765205309817,0.13483247,91418.0,91411.0,0.17563]
[1765205310013,0.16392,91432.0,91411.0,0.17563]
[1765205310014,0.00026099,91412.0,91411.0,0.17563]
[1765205310514,0.00026099,91412.0,91404.0,0.05736]
[1765205310515,0.13483247,91430.0,91404.0,0.05736]
[1765205310908,0.13483247,91430.0,91428.0,0.0109376]
[1765205311211,0.13483247,91450.0,91439.0,0.0864]
[1765205311514,0.13483247,91450.0,91422.0,0.05736]
[1765205311515,0.0109356,91446.0,91436.0,0.0109368]
[1765205311716,0.18089,91436.0,91435.0,0.00016409]
[1765205312903,0.003,91436.0,91435.0,0.00016409]
[1765205313110,0.003,91436.0,91435.0,0.01110099]
[1765205313315,0.003,91436.0,91435.0,0.18673099]
[1765205313910,0.004,91436.0,91435.0,0.18673099]
[1765205314406,0.001,91436.0,91435.0,0.18673099]
[1765205314603,0.005,91436.0,91435.0,0.17579409]
[1765205315007,0.001,91436.0,91435.0,0.17579409]
[1765205315203,0.001,91436.0,91435.0,0.17679409]
[1765205315405,0.1918268,91436.0,91435.0,0.00216409]
[1765205315607,0.1918268,91436.0,91418.0,0.0109389]
[1765205315608,0.13483247,91445.0,91416.0,0.0109391]
[1765205315810,0.1918268,91436.0,91435.0,0.001]
[1765205316219,0.05712,91440.0,91411.0,0.0109397]
[1765205316220,0.0109387,91421.0,91411.0,0.0109397]
[1765205316514,0.0109387,91421.0,91412.0,0.0109395]
[1765205316708,0.00016409,91425.0,91394.0,0.0109418]
[1765205316910,0.13483247,91420.0,91418.0,0.0109389]
[1765205317218,0.01110229,91425.0,91418.0,0.0109389]
[1765205317606,0.00016409,91425.0,91424.0,0.0864]
[1765205318111,0.00016409,91425.0,91424.0,0.17563]
[1765205318302,0.00316409,91425.0,91424.0,0.17563]
[1765205318510,0.00516409,91425.0,91424.0,0.17563]
[1765205319017,0.13483247,91450.0,91449.0,0.0864]
[1765205319208,0.010935,91451.0,91444.0,0.0109357]
[1765205319515,0.13483247,91459.0,91447.0,0.0109353]
[1765205319915,0.14576657,91459.0,91444.0,0.00016409]
[1765205320112,0.002,91450.0,91448.0,0.0109352]
[1765205320308,0.18089,91445.0,91444.0,0.00016409]
[1765205320513,0.002,91450.0,91424.0,0.003]
[1765205320709,0.13483247,91434.0,91429.0,0.0109375]
[1765205320912,0.0109371,91433.0,91428.0,0.0109376]
[1765205321415,0.005,91450.0,91412.0,0.0109395]
[1765205321416,0.13483247,91440.0,91426.0,0.05736]
[1765205321615,0.0109364,91439.0,91426.0,0.05736]
[1765205321814,0.0109364,91439.0,91435.0,0.0109368]
[1765205322019,0.13483247,91440.0,91438.0,0.0109365]
[1765205322213,0.13483247,91440.0,91439.0,0.0864]
[1765205322416,0.0109366,91438.0,91433.0,0.010937]
[1765205322813,0.00016409,91442.0,91439.0,0.0109364]
[1765205323317,0.00016409,91442.0,91441.0,0.1654]
[1765205324423,0.00116409,91442.0,91441.0,0.1654]
[1765205324915,0.00016409,91442.0,91441.0,0.1654]
[1765205326016,0.08643,91434.0,91431.0,0.0288872]
[1765205326221,0.08643,91429.0,91428.0,0.0109376]
[1765205326614,0.0109377,91428.0,91425.0,0.0109381]
[1765205326814,0.16714,91431.0,91430.0,0.0109374]
[1765205327122,0.0109373,91432.0,91430.0,0.0965674]
[1765205327423,0.0109373,91432.0,91414.0,0.0109393]
[1765205327424,0.13483247,91438.0,91420.0,0.0109387]
[1765205327723,0.0109383,91424.0,91420.0,0.0109387]
[1765205327909,0.0109386,91421.0,91411.0,0.0288872]
[1765205328114,0.010939,91418.0,91408.0,0.0288872]
[1765205328321,0.010939,91418.0,91409.0,0.0288872]
[1765205328521,0.0109393,91415.0,91409.0,0.0398271]
[1765205328721,0.00016409,91422.0,91419.0,0.0109387]
[1765205328919,0.00016409,91422.0,91413.0,0.0109395]
[1765205329108,0.00016409,91422.0,91409.0,0.0109399]
[1765205329314,0.0109396,91413.0,91405.0,0.0109404]
[1765205329510,0.0109398,91411.0,91404.0,0.0109405]
[1765205329719,0.0109402,91408.0,91404.0,0.0109405]
[1765205329908,0.0109397,91412.0,91404.0,0.0109405]
[1765205330114,0.0109401,91409.0,91404.0,0.0109405]
[1765205330715,0.13483247,91414.0,91404.0,0.002]
[1765205330918,0.16714,91405.0,91404.0,0.002]
[1765205331218,0.0109397,91412.0,91411.0,0.08563]
[1765205331426,0.0109397,91412.0,91404.0,0.003]
[1765205331921,0.13483247,91414.0,91411.0,0.0109397]
[1765205332127,0.13483247,91421.0,91404.0,0.004]
[1765205332419,0.16714,91405.0,91404.0,0.004]
[1765205332621,0.13483247,91420.0,91404.0,0.004]
[1765205332824,0.13483247,91420.0,91419.0,0.0109388]
[1765205333021,0.00016409,91422.0,91409.0,0.05175]
[1765205333329,0.00016409,91422.0,91404.0,0.001]
[1765205333330,0.16714,91405.0,91404.0,0.001]
[1765205333626,0.0109399,91411.0,91404.0,0.001]
[1765205333821,0.0109402,91408.0,91405.0,0.0109405]
[1765205334227,0.0109393,91415.0,91408.0,0.0109401]
[1765205334423,0.13683247,91420.0,91419.0,0.1654]
[1765205334627,0.001,91420.0,91419.0,0.08563]
[1765205335026,0.00016409,91422.0,91419.0,0.08563]
[1765205335214,0.00016409,91422.0,91408.0,0.05175]
[1765205335215,0.00016409,91422.0,91421.0,0.1654]
[1765205335718,0.16714,91421.0,91408.0,0.05175]
[1765205335919,0.00016409,91422.0,91421.0,0.0965686]
[1765205336117,0.00016409,91422.0,91417.0,0.010939]
[1765205336118,0.01110259,91422.0,91417.0,0.010939]
[1765205336317,0.0109387,91420.0,91416.0,0.0109391]
[1765205336524,0.08643,91413.0,91412.0,0.0109396]
[1765205336724,0.0109389,91418.0,91416.0,0.0109392]
[1765205337025,0.08643,91413.0,91412.0,0.0109396]
[1765205337721,0.08643,91413.0,91400.0,0.010941]
[1765205337923,0.13483247,91410.0,91409.0,0.01094]
[1765205338122,0.16714,91410.0,91407.0,0.0109402]
[1765205338324,0.08643,91400.0,91399.0,0.0109411]
[1765205339528,0.16418,91398.0,91397.0,0.00013027]
[1765205340324,0.16418,91398.0,91381.0,0.05878458]
[1765205340325,0.07888,91372.0,91371.0,0.03922517]
[1765205340628,0.03077,91392.0,91347.0,0.02940825]
[1765205340629,0.07888,91369.0,91347.0,0.02940825]
[1765205340828,0.07888,91369.0,91356.0,0.0109463]
[1765205341026,0.07888,91369.0,91344.0,0.0573077]
[1765205341227,0.00012837,91369.0,91317.0,0.01212656]
[1765205341428,0.00012837,91369.0,91329.0,0.0109495]
[1765205341429,0.07888,91341.0,91329.0,0.0109495]
[1765205341634,0.07896466,91341.0,91329.0,0.0109495]
[1765205342023,0.07896466,91341.0,91315.0,0.00109512]
[1765205342024,0.07896466,91341.0,91317.0,0.0109509]
[1765205342219,0.0109501,91325.0,91315.0,0.00109512]
[1765205342420,0.07888,91316.0,91315.0,0.00109512]
[1765205342625,0.13483247,91306.0,91296.0,0.04636]
[1765205343025,0.02621082,91305.0,91296.0,0.04636]
[1765205343232,0.02621082,91305.0,91290.0,0.00109542]
[1765205343233,0.02621082,91304.0,91290.0,0.00109542]
[1765205343530,0.13483247,91300.0,91299.0,0.08013]
[1765205343735,0.02621082,91300.0,91299.0,0.08013]
[1765205343940,0.02621082,91300.0,91296.0,0.018]
[1765205344139,8.722e-05,91303.0,91296.0,0.018]
[1765205344327,0.0260984,91302.0,91296.0,0.0289535]
[1765205344531,8.722e-05,91303.0,91296.0,0.0289535]
[1765205344733,0.02609849,91302.0,91299.0,0.001]
[1765205344934,8.722e-05,91303.0,91302.0,0.15506]
[1765205346034,0.00016428,91310.0,91309.0,0.15506]
[1765205346236,4.28e-06,91310.0,91309.0,0.166012]
[1765205346935,0.13483247,91330.0,91309.0,0.166012]
[1765205347126,0.13483247,91360.0,91309.0,0.166012]
[1765205347127,0.17136,91350.0,91349.0,0.0910772]
[1765205347328,0.17136,91350.0,91349.0,0.15506]
[1765205347329,8.337e-05,91350.0,91349.0,0.15506]
[1765205347533,8.337e-05,91350.0,91342.0,0.0109479]
[1765205347927,8.337e-05,91350.0,91341.0,0.0109481]
[1765205348133,8.337e-05,91350.0,91349.0,0.08013]
[1765205348536,8.337e-05,91350.0,91349.0,0.15506]
[1765205348842,0.00108337,91350.0,91349.0,0.15506]
[1765205349432,0.00208337,91350.0,91349.0,0.15506]
[1765205349733,0.00208337,91350.0,91349.0,0.1660072]
[1765205349930,0.00108337,91350.0,91349.0,0.1660072]
[1765205350136,0.00208337,91350.0,91349.0,0.1660072]
[1765205350541,0.00208337,91350.0,91337.0,0.01111267]
[1765205350741,0.13483247,91347.0,91342.0,0.010948]
[1765205350934,0.13483247,91347.0,91337.0,0.01111277]
[1765205351444,0.0109483,91340.0,91337.0,0.00016417]
[1765205351638,0.0792,91338.0,91337.0,0.00016417]
[1765205352338,0.0001299,91339.0,91338.0,0.16804]
[1765205352539,0.0001299,91339.0,91338.0,0.1789885]
[1765205352842,0.0001299,91339.0,91337.0,0.00416417]
[1765205353238,0.0001299,91339.0,91338.0,0.16804]
[1765205354843,0.0031299,91339.0,91338.0,0.16804]
[1765205355244,0.0031299,91339.0,91337.0,0.00016417]
[1765205355436,0.0011299,91339.0,91338.0,0.001]
[1765205355736,0.0011299,91339.0,91338.0,0.002]
[1765205355737,0.1234099,91339.0,91338.0,0.002]
[1765205355941,0.14943633,91339.0,91338.0,0.002]
[1765205356327,0.14943633,91339.0,91338.0,0.001]
[1765205356532,0.1342285,91338.0,91337.0,0.00016417]
[1765205356734,0.16025493,91338.0,91337.0,0.00016417]
[1765205357141,0.0109492,91333.0,91326.0,0.0109499]
[1765205357343,0.00014116,91332.0,91326.0,0.0109499]
[1765205357644,0.00014116,91332.0,91331.0,0.08693]
[1765205358538,0.02619346,91332.0,91331.0,0.08693]
[1765205358742,0.00414116,91332.0,91331.0,0.16804]
[1765205359242,0.00200116,91332.0,91331.0,0.16804]
[1765205359444,0.002,91332.0,91331.0,0.16804]
[1765205359643,0.003,91332.0,91331.0,0.16804]
[1765205360236,0.00304912,91332.0,91331.0,0.16804]
[1765205360738,0.00016417,91341.0,91340.0,0.1789883]
[1765205360938,0.13483247,91360.0,91349.0,0.16804]
[1765205361140,0.0260736,91359.0,91358.0,0.226416]
[1765205361844,0.0260736,91359.0,91341.0,0.0583781]
[1765205362042,0.0109479,91343.0,91341.0,0.00016417]
[1765205362349,0.1425092,91332.0,91331.0,0.003]
[1765205362545,0.1425092,91332.0,91331.0,0.17104]
[1765205362546,0.0260736,91332.0,91331.0,0.17104]
[1765205362745,0.05834574,91357.0,91356.0,0.0109463]
[1765205362939,0.02608322,91357.0,91356.0,0.0978763]
[1765205363142,0.02608322,91357.0,91356.0,0.1789863]
[1765205364547,0.02608322,91357.0,91341.0,0.04743]
[1765205364548,0.10380942,91357.0,91352.0,0.0109468]
[1765205364743,0.02608322,91356.0,91352.0,0.0109468]
[1765205364944,0.02608322,91355.0,91352.0,0.0109468]
[1765205365142,0.02608322,91354.0,91352.0,0.0109468]
[1765205365445,0.02608322,91353.0,91352.0,0.0978768]
[1765205365749,0.02608322,91353.0,91352.0,0.1789868]
[1765205366747,0.02608322,91353.0,91341.0,0.04743]
[1765205367049,0.1696262,91351.0,91330.0,0.0109494]
[1765205367251,0.02608322,91350.0,91349.0,0.1789872]
[1765205368146,3.22e-06,91350.0,91349.0,0.1789872]
[1765205368537,0.24675502,91370.0,91349.0,0.1789872]
[1765205368538,0.07712882,91374.0,91372.0,0.0109444]
[1765205368738,0.45896,91379.0,91378.0,0.1789837]
[1765205369347,0.45896,91379.0,91378.0,0.16804]
[1765205370341,0.00016417,91388.0,91387.0,0.1789826]
[1765205371643,0.00116417,91388.0,91387.0,0.1789826]
[1765205372237,4.17e-06,91388.0,91387.0,0.1789826]
[1765205372444,0.5208,91406.0,91405.0,0.1789805]
[1765205372646,0.07712882,91417.0,91416.0,0.08693]
[1765205372842,0.6903462,91430.0,91396.0,0.0109415]
[1765205372843,0.08806732,91422.0,91420.0,0.0109386]
[1765205373051,0.52072,91430.0,91429.0,0.16804]
[1765205373547,0.52072,91430.0,91424.0,0.04743]
[1765205373846,0.0109376,91429.0,91422.0,0.0109384]
[1765205374045,0.52072,91430.0,91420.0,0.00016407]
[1765205374437,0.0109376,91429.0,91420.0,0.00016407]
[1765205374642,0.6953462,91430.0,91427.0,0.0109378]
[1765205374844,0.52572,91430.0,91429.0,0.16804]
[1765205375553,0.52372,91430.0,91429.0,0.16804]
[1765205376752,0.52072,91430.0,91429.0,0.16804]
[1765205376942,0.52372,91430.0,91427.0,0.0109378]
[1765205377142,0.52572,91430.0,91429.0,0.16804]
[1765205377342,0.52272,91430.0,91429.0,0.16804]
[1765205377561,0.52572,91430.0,91427.0,0.0109378]
[1765205377748,0.52572,91430.0,91429.0,0.08693]
[1765205377949,0.52372,91430.0,91429.0,0.08693]
[1765205378259,0.16269,91421.0,91420.0,0.00016407]
[1765205378645,0.52572,91430.0,91429.0,0.16804]
[1765205378852,0.52572,91430.0,91422.0,0.0109384]
[1765205378853,0.60726,91430.0,91422.0,0.0109384]
[1765205379154,0.010938,91426.0,91420.0,0.00016407]
[1765205379452,0.0109379,91427.0,91423.0,0.0109383]
[1765205379653,0.08154,91424.0,91420.0,0.00016407]
[1765205379952,0.08154,91421.0,91420.0,0.00016407]
[1765205380158,0.16269,91421.0,91420.0,0.00016407]
[1765205380451,0.16269,91406.0,91375.0,0.0547201]
[1765205380650,0.16269,91406.0,91380.0,0.1696262]
[1765205381048,0.0109405,91405.0,91400.0,0.010941]
[1765205381243,0.0109401,91409.0,91403.0,0.0109407]
[1765205381443,0.1696262,91410.0,91380.0,0.1696262]
[1765205381444,0.08154,91407.0,91402.0,0.0109408]
[1765205381650,0.0109407,91404.0,91393.0,0.00016407]
[1765205381954,0.1736313,91398.0,91393.0,0.01110587]
[1765205382258,0.0109412,91400.0,91394.0,0.0109418]
[1765205382553,0.16337,91394.0,91393.0,0.00016407]
[1765205383356,0.1743119,91393.0,91392.0,0.003]
[1765205383555,0.0109424,91389.0,91383.0,0.0109431]
[1765205383859,0.1696262,91403.0,91397.0,0.08064]
[1765205384048,0.1696262,91403.0,91393.0,0.003]
[1765205384049,0.0953518,91394.0,91393.0,0.003]
[1765205384249,0.1743118,91394.0,91393.0,0.003]
[1765205384661,0.0109413,91398.0,91393.0,0.0139419]
[1765205384851,0.16337,91351.0,91325.0,0.07842094]
[1765205385155,0.04295,91380.0,91351.0,0.1695869]
[1765205385156,0.00016416,91352.0,91351.0,0.1695869]
[1765205385361,0.00016416,91361.0,91351.0,0.15864]
[1765205385560,0.00016416,91361.0,91350.0,0.04921]
[1765205385859,0.01110986,91361.0,91360.0,0.08064]